fUSD/lending_fUSD_20250206
["ID","MTS","AMOUNT","RATE_DAILY","PERIOD"]
[351999636,1738873839025,-500.0,0.0001671,2]
[351999637,1738873839034,-500.0,0.0001671,2]
[351999638,1738873839043,-500.0,0.0001671,2]
[351999639,1738873839052,-310.69,0.0001671,2]
[351999640,1738873839061,-500.0,0.0001671,2]
[351999641,1738873839071,-500.0,0.0001671,2]
[351999642,1738873839080,-512.24532211,0.0001671,2]
[351999643,1738873839089,-500.0,0.0001671,2]
[351999644,1738873839099,-500.0,0.0001671,2]
[351999646,1738873839109,-415.27664965,0.0001671,2]
[351999648,1738873839120,-500.0,0.0001671,2]
[351999650,1738873839129,-500.0,0.0001671,2]
[351999670,1738873839331,-500.0,0.0001671,2]
[351999673,1738873839341,-500.0,0.0001671,2]
[351999675,1738873839351,-500.0,0.0001671,2]
[351999677,1738873839361,-500.0,0.0001671,2]
[351999679,1738873839371,-500.0,0.0001671,2]
[351999681,1738873839380,-500.0,0.0001671,2]
[351999683,1738873839389,-500.0,0.0001671,2]
[351999684,1738873839399,-500.0,0.0001671,2]
[351999686,1738873839410,-500.0,0.0001671,2]
[351999689,1738873839419,-500.0,0.0001671,2]
[351999690,1738873839429,-500.0,0.0001671,2]
[351999692,1738873839440,-500.0,0.0001671,2]
[351999694,1738873839450,-580.26847555,0.0001671,2]
[351999696,1738873839459,-500.0,0.0001671,2]
[351999698,1738873839468,-689.21032059,0.0001671,2]
[351999700,1738873839478,-150.37,0.00016733,2]
[351999702,1738873839487,-151.94,0.00016733,2]
[351999704,1738873839497,-151.69,0.00016733,2]
[351999706,1738873839506,-151.31,0.00016733,2]
[351999708,1738873839515,-150.75,0.00016733,2]
[351999710,1738873839525,-150.46,0.00016733,2]
[351999712,1738873839534,-150.02,0.00016733,2]
[351999714,1738873839544,-472.17559812,0.00016745,2]
[351999716,1738873839553,-1000.0,0.000168,2]
[351999718,1738873839563,-900.0,0.000168,6]
[351999720,1738873839572,-1569.0,0.000168,2]
[351999722,1738873839581,-2180.06861,0.0001683,2]
[351999724,1738873839591,-500.0,0.00016845,2]
[351999726,1738873839600,-500.0,0.00016845,2]
[351999728,1738873839609,-500.0,0.00016845,2]
[351999730,1738873839619,-500.0,0.00016845,2]
[351999732,1738873839628,-500.0,0.00016845,2]
[351999734,1738873839637,-500.0,0.00016845,2]
[351999736,1738873839646,-500.0,0.00016845,2]
[351999738,1738873839655,-500.0,0.00016845,2]
[351999740,1738873839665,-500.0,0.00016845,2]
[351999742,1738873839674,-500.0,0.00016845,2]
[351999744,1738873839683,-500.0,0.00016845,2]
[351999746,1738873839694,-500.0,0.00016845,2]
[351999748,1738873839703,-500.0,0.00016845,2]
[351999750,1738873839712,-500.0,0.00016845,2]
[351999752,1738873839722,-500.0,0.00016845,2]
[351999754,1738873839732,-500.0,0.00016845,2]
[351999755,1738873839743,-500.0,0.00016845,2]
[351999757,1738873839752,-500.0,0.00016845,2]
[351999759,1738873839762,-500.59330565,0.00016845,2]
[351999761,1738873839772,-500.0,0.00016845,2]
[351999763,1738873839782,-501.22387425,0.00016845,2]
[351999765,1738873839791,-500.0,0.00016845,2]
[351999767,1738873839802,-500.0,0.00016845,2]
[351999769,1738873839812,-500.0,0.00016845,2]
[351999771,1738873839821,-500.0,0.00016845,2]
[351999773,1738873839832,-500.0,0.00016845,2]
[351999775,1738873839841,-500.0,0.00016845,2]
[351999778,1738873839851,-500.0,0.00016845,2]
[351999779,1738873839860,-505.12685106,0.00016845,2]
[351999781,1738873839869,-500.0,0.00016845,2]
[351999783,1738873839878,-500.0,0.00016845,2]
[351999785,1738873839888,-500.0,0.00016845,2]
[351999787,1738873839897,-500.0,0.00016845,2]
[351999789,1738873839907,-500.0,0.00016845,2]
[351999791,1738873839916,-500.0,0.00016845,2]
[351999794,1738873839927,-500.0,0.00016845,2]
[351999795,1738873839938,-500.0,0.00016845,2]
[351999797,1738873839947,-500.0,0.00016845,2]
[351999799,1738873839957,-500.0,0.00016845,2]
[351999801,1738873839966,-500.0,0.00016845,2]
[351999803,1738873839975,-500.0,0.00016845,2]
[351999805,1738873839984,-317.68531001,0.00016845,2]
[351999807,1738873839994,-500.0,0.00016845,2]
[351999809,1738873840005,-500.0,0.00016845,2]
[351999811,1738873840014,-500.0,0.00016845,2]
[351999813,1738873840024,-500.0,0.00016845,2]
[351999815,1738873840034,-500.0,0.00016845,2]
[351999817,1738873840043,-500.0,0.00016845,2]
[351999819,1738873840052,-500.0,0.00016845,2]
[351999821,1738873840062,-500.0,0.00016845,2]
[351999823,1738873840071,-500.0,0.00016845,2]
[351999825,1738873840080,-1295.22,0.00016845,2]
[351999827,1738873840090,-500.0,0.00016845,2]
[351999829,1738873840100,-500.0,0.00016845,2]
[351999831,1738873840109,-693.12,0.00016845,2]
[351999833,1738873840118,-598.1,0.00016845,2]
[351999835,1738873840128,-500.0,0.00016845,2]
[351999837,1738873840138,-500.0,0.00016845,2]
[351999839,1738873840148,-500.0,0.00016845,2]
[351999841,1738873840159,-500.0,0.00016845,2]
[351999843,1738873840169,-500.0,0.00016845,2]
[351999845,1738873840178,-500.0,0.00016845,2]
[351999847,1738873840190,-500.0,0.00016845,2]
[351999849,1738873840200,-500.0,0.00016845,2]
[351999851,1738873840209,-500.0,0.00016845,2]
[351999853,1738873840219,-500.0,0.00016845,2]
[351999855,1738873840229,-500.0,0.00016845,2]
[351999857,1738873840239,-500.0,0.00016845,2]
[351999859,1738873840249,-500.0,0.00016845,2]
[351999862,1738873840258,-500.0,0.00016845,2]
[351999865,1738873840269,-500.0,0.00016845,2]
[351999868,1738873840278,-500.0,0.00016845,2]
[351999872,1738873840287,-819.14,0.00016845,2]
[351999874,1738873840297,-575.08,0.00016845,2]
[351999876,1738873840308,-542.73,0.00016845,2]
[351999878,1738873840318,-500.0,0.00016845,2]
[351999880,1738873840327,-636.43,0.00016845,2]
[351999882,1738873840337,-593.37,0.00016845,2]
[351999884,1738873840347,-500.0,0.00016845,2]
[351999886,1738873840357,-500.0,0.00016845,2]
[351999888,1738873840366,-1014.92,0.00016845,2]
[351999890,1738873840376,-827.67,0.00016845,2]
[351999892,1738873840386,-500.0,0.00016845,2]
[351999894,1738873840396,-510.83,0.00016845,2]
[351999896,1738873840406,-500.0,0.00016845,2]
[351999898,1738873840416,-1868.94,0.00016845,2]
[351999900,1738873840425,-515.98,0.00016845,2]
[351999902,1738873840435,-598.1,0.00016845,2]
[351999904,1738873840451,-500.0,0.00016845,2]
[351999906,1738873840461,-1007.55,0.00016845,2]
[351999908,1738873840471,-500.0,0.00016845,2]
[351999910,1738873840481,-780.14,0.00016845,2]
[351999912,1738873840490,-1049.49,0.00016845,2]
[351999914,1738873840500,-531.5,0.00016845,2]
[351999916,1738873840510,-500.0,0.00016845,2]
[351999918,1738873840520,-500.0,0.00016845,2]
[351999920,1738873840530,-500.0,0.00016845,2]
[351999922,1738873840540,-638.02319158,0.00016845,2]
[351999924,1738873840555,-186.10680842,0.00016845,2]
[351999926,1738873840566,-524.56,0.00016845,2]
[351999928,1738873840576,-857.4,0.00016845,2]
[351999930,1738873840586,-500.0,0.00016845,2]
[351999932,1738873840597,-688.21,0.00016845,2]
[351999934,1738873840607,-500.0,0.00016845,2]
[351999936,1738873840617,-958.57,0.00016845,2]
[351999938,1738873840627,-500.0,0.00016845,2]
[351999940,1738873840637,-621.13,0.00016845,2]
[351999942,1738873840647,-500.0,0.00016845,2]
[351999944,1738873840656,-500.0,0.00016845,2]
[351999946,1738873840666,-686.36,0.00016845,2]
[351999948,1738873840675,-675.98,0.00016845,2]
[351999950,1738873840684,-500.0,0.00016845,2]
[351999952,1738873840698,-500.0,0.00016845,2]
[351999954,1738873840708,-806.26,0.00016845,2]
[351999956,1738873840717,-500.0,0.00016845,2]
[351999958,1738873840727,-500.0,0.00016845,2]
[351999960,1738873840736,-500.0,0.00016845,2]
[351999962,1738873840746,-500.0,0.00016845,2]
[351999964,1738873840756,-500.0,0.00016845,2]
[351999966,1738873840765,-500.0,0.00016845,2]
[351999968,1738873840775,-500.0,0.00016845,2]
[351999970,1738873840785,-500.0,0.00016845,2]
[351999972,1738873840795,-500.0,0.00016845,2]
[351999974,1738873840804,-500.0,0.00016845,2]
[351999976,1738873840814,-579.6,0.00016845,2]
[351999978,1738873840823,-500.0,0.00016845,2]
[351999980,1738873840832,-500.0,0.00016845,2]
[351999982,1738873840842,-500.0,0.00016845,2]
[351999984,1738873840850,-500.0,0.00016845,2]
[351999986,1738873840860,-500.0,0.00016845,2]
[351999988,1738873840869,-500.0,0.00016845,2]
[351999990,1738873840878,-599.28,0.00016845,2]
[351999992,1738873840887,-500.0,0.00016845,2]
[351999994,1738873840897,-500.0,0.00016845,2]
[351999996,1738873840907,-500.0,0.00016845,2]
[351999998,1738873840917,-150.44733823,0.00016845,2]
[352000000,1738873840927,-500.0,0.00016845,2]
[352000002,1738873840940,-500.0,0.00016845,2]
[352000004,1738873840949,-500.0,0.00016846,2]
[352000006,1738873840958,-500.0,0.00016846,2]
[352000008,1738873840969,-500.0,0.00016846,2]
[352000010,1738873840978,-500.0,0.00016846,2]
[352000012,1738873840988,-500.0,0.00016846,2]
[352000014,1738873840998,-500.0,0.00016846,2]
[352000016,1738873841007,-500.0,0.00016846,2]
[352000018,1738873841017,-490.93193303,0.00016846,2]
[352000020,1738873841025,-500.0,0.00016846,2]
[352000022,1738873841034,-698.5,0.00016846,2]
[352000024,1738873841044,-500.0,0.00016846,2]
[352000026,1738873841053,-500.0,0.00016846,2]
[352000028,1738873841063,-500.0,0.00016846,2]
[352000030,1738873841072,-500.0,0.00016846,2]
[352000032,1738873841081,-500.0,0.00016846,2]
[352000034,1738873841091,-500.0,0.00016846,2]
[352000036,1738873841101,-500.0,0.00016846,2]
[352000038,1738873841110,-500.0,0.00016846,2]
[352000040,1738873841119,-500.0,0.00016846,2]
[352000042,1738873841128,-500.0,0.00016846,2]
[352000043,1738873841137,-500.0,0.00016846,2]
[352000046,1738873841147,-500.0,0.00016846,2]
[352000048,1738873841156,-500.0,0.00016846,2]
[352000050,1738873841166,-500.0,0.00016846,2]
[352000051,1738873841175,-500.0,0.00016846,2]
[352000054,1738873841185,-500.0,0.00016846,2]
[352000056,1738873841197,-500.0,0.00016846,2]
[352000058,1738873841206,-500.0,0.00016846,2]
[352000059,1738873841216,-510.24,0.00016846,2]
[352000062,1738873841225,-501.54,0.00016846,2]
[352000063,1738873841234,-614.86,0.00016846,2]
[352000066,1738873841244,-2036.06,0.00016846,2]
[352000068,1738873841253,-995.94,0.00016846,2]
[352000069,1738873841263,-500.0,0.00016846,2]
[352000072,1738873841273,-625.35,0.00016846,2]
[352000074,1738873841285,-500.0,0.00016846,2]
[352000076,1738873841296,-500.0,0.00016846,2]
[352000078,1738873841305,-747.5,0.00016846,2]
[352000079,1738873841315,-912.55,0.00016846,2]
[352000082,1738873841324,-500.0,0.00016846,2]
[352000084,1738873841334,-552.3,0.00016846,2]
[352000086,1738873841345,-511.61,0.00016846,2]
[352000088,1738873841355,-380.79998311,0.00016846,2]
[352000090,1738873841368,-177.59001689,0.00016846,2]
[352000092,1738873841378,-601.22,0.00016846,2]
[352000094,1738873841387,-500.0,0.00016846,2]
[352000096,1738873841397,-598.0,0.00016846,2]
[352000098,1738873841407,-620.43,0.00016846,2]
[352000100,1738873841417,-500.0,0.00016846,2]
[352000102,1738873841426,-629.83,0.00016846,2]
[352000104,1738873841438,-500.0,0.00016846,2]
[352000106,1738873841448,-500.0,0.00016846,2]
[352000108,1738873841458,-500.0,0.00016846,2]
[352000110,1738873841467,-500.0,0.00016846,2]
[352000112,1738873841477,-500.0,0.00016846,2]
[352000114,1738873841486,-603.83,0.00016846,2]
[352000116,1738873841497,-611.27,0.00016846,2]
[352000118,1738873841507,-500.0,0.00016846,2]
[352000120,1738873841517,-1000.0,0.00016846,2]
[352000122,1738873841527,-500.0,0.00016846,2]
[352000124,1738873841537,-500.0,0.00016846,2]
[352000126,1738873841546,-507.13,0.00016846,2]
[352000128,1738873841556,-956.84,0.00016846,2]
[352000130,1738873841565,-500.0,0.00016846,2]
[352000132,1738873841575,-549.23,0.00016846,2]
[352000133,1738873841585,-598.63,0.00016846,2]
[352000134,1738873841595,-607.46,0.00016846,2]
[352000135,1738873841604,-500.0,0.00016846,2]
[352000136,1738873841614,-500.0,0.00016846,2]
[352000137,1738873841623,-623.42,0.00016846,2]
[352000138,1738873841633,-500.0,0.00016846,2]
[352000139,1738873841642,-500.0,0.00016846,2]
[352000140,1738873841651,-961.37,0.00016846,2]
[352000141,1738873841661,-524.89,0.00016846,2]
[352000142,1738873841671,-744.68,0.00016846,2]
[352000143,1738873841680,-500.0,0.00016846,2]
[352000144,1738873841692,-500.0,0.00016846,2]
[352000145,1738873841702,-914.92,0.00016846,2]
[352000146,1738873841712,-604.26,0.00016846,2]
[352000147,1738873841722,-500.0,0.00016846,2]
[352000148,1738873841732,-500.0,0.00016846,2]
[352000149,1738873841742,-505.6,0.00016846,2]
[352000150,1738873841752,-648.0,0.00016846,2]
[352000151,1738873841762,-500.0,0.00016846,2]
[352000152,1738873841772,-500.0,0.00016846,2]
[352000153,1738873841782,-500.0,0.00016846,2]
[352000154,1738873841792,-500.0,0.00016846,2]
[352000156,1738873841801,-1255.7,0.00016846,2]
[352000158,1738873841813,-500.0,0.00016846,2]
[352000160,1738873841823,-500.0,0.00016846,2]
[352000162,1738873841832,-500.0,0.00016846,2]
[352000164,1738873841842,-500.0,0.00016846,2]
[352000166,1738873841851,-763.29,0.00016846,2]
[352000168,1738873841861,-500.0,0.00016846,2]
[352000170,1738873841871,-500.0,0.00016846,2]
[352000172,1738873841881,-500.0,0.00016846,2]
[352000174,1738873841890,-500.0,0.00016846,2]
[352000176,1738873841900,-500.0,0.00016846,2]
[352000178,1738873841909,-500.0,0.00016846,2]
[352000180,1738873841920,-1683.0,0.00016846,2]
[352000182,1738873841931,-500.0,0.00016847,2]
[352000184,1738873841942,-500.0,0.00016847,2]
[352000186,1738873841952,-500.0,0.00016847,2]
[352000188,1738873841964,-500.0,0.00016847,2]
[352000190,1738873841974,-500.0,0.00016847,2]
[352000192,1738873841983,-500.0,0.00016847,2]
[352000194,1738873841992,-246.02880249,0.00016847,2]
[352000196,1738873842003,-500.0,0.00016847,2]
[352000198,1738873842012,-500.0,0.00016847,2]
[352000200,1738873842022,-500.0,0.00016847,2]
[352000202,1738873842031,-500.0,0.00016847,2]
[352000204,1738873842041,-500.0,0.00016847,2]
[352000206,1738873842050,-500.0,0.00016847,2]
[352000207,1738873842060,-500.0,0.00016847,2]
[352000209,1738873842069,-239.37077582,0.00016847,2]
[352000212,1738873842090,-260.62922418,0.00016847,2]
[352000214,1738873842100,-500.0,0.00016847,2]
[352000216,1738873842109,-500.0,0.00016847,2]
[352000218,1738873842118,-500.0,0.00016847,2]
[352000220,1738873842128,-213.77169582,0.00016847,2]
[352000223,1738873842148,-286.22830418,0.00016847,2]
[352000225,1738873842158,-500.0,0.00016847,2]
[352000227,1738873842168,-93.85323172,0.00016847,2]
[352000230,1738873842179,-406.14676828,0.00016847,2]
[352000232,1738873842189,-500.0,0.00016847,2]
[352000233,1738873842199,-500.0,0.00016847,2]
[352000235,1738873842208,-500.0,0.00016847,2]
[352000237,1738873842218,-500.0,0.00016847,2]
[352000240,1738873842227,-500.0,0.00016847,2]
[352000241,1738873842237,-500.0,0.00016847,2]
[352000243,1738873842247,-500.0,0.00016847,2]
[352000246,1738873842258,-608.668,0.00016852,2]
[352000248,1738873842268,-231.754,0.00016852,2]
[352000250,1738873842278,-746.50112091,0.00016864,2]
[352000252,1738873842290,-294.37662187,0.00016864,2]
[352000266,1738873842417,-500.0,0.00016846,2]
[352000268,1738873842427,-959.12225722,0.00016864,2]
[352000270,1738873842438,-200.0,0.00016864,2]
[352000272,1738873842448,-2565.76383,0.00016882,2]
[352000274,1738873842458,-156.39864357,0.00016882,2]
[352000276,1738873842469,-431.53194145,0.00016898,2]
[352000278,1738873842478,-1216.66332782,0.000169,6]
[352000281,1738873842498,-183.33667218,0.000169,6]
[352000283,1738873842508,-225.6232104,0.000169,2]
[352000285,1738873842518,-200.54011742,0.00016933,2]
[352000287,1738873842531,-299.45988258,0.00016933,2]
[352000289,1738873842541,-46.56262483,0.00016982,2]
[352000291,1738873842553,-453.43737517,0.00016982,2]
[352000293,1738873842562,-500.0,0.00016982,2]
[352000295,1738873842572,-48.59702994,0.00016982,2]
[352000297,1738873842584,-451.40297006,0.00016982,2]
[352000299,1738873842594,-342.98,0.00016982,2]
[352000301,1738873842604,-16.97789408,0.00016982,2]
[352000302,1738873842615,-483.02210592,0.00016982,2]
[352000303,1738873842626,-500.0,0.00016982,2]
[352000304,1738873842636,-500.0,0.00016982,2]
[352000305,1738873842646,-500.0,0.00016982,2]
[352000306,1738873842655,-500.0,0.00016982,2]
[352000307,1738873842665,-409.64153612,0.00016982,2]
[352000309,1738873842733,-500.0,0.00016846,2]
[352000310,1738873842743,-90.35846388,0.00016982,2]
[352000312,1738873842754,-500.0,0.00016982,2]
[352000314,1738873842763,-500.0,0.00016982,2]
[352000316,1738873842773,-500.0,0.00016982,2]
[352000318,1738873842783,-500.0,0.00016982,2]
[352000320,1738873842793,-500.0,0.00016982,2]
[352000322,1738873842802,-500.0,0.00016982,2]
[352000324,1738873842812,-500.0,0.00016982,2]
[352000326,1738873842821,-500.0,0.00016982,2]
[352000328,1738873842831,-500.0,0.00016982,2]
[352000330,1738873842840,-500.0,0.00016982,2]
[352000332,1738873842850,-500.0,0.00016982,2]
[352000334,1738873842860,-500.0,0.00016982,2]
[352000336,1738873842869,-500.0,0.00016982,2]
[352000338,1738873842879,-500.0,0.00016982,2]
[352000340,1738873842889,-500.0,0.00016982,2]
[352000342,1738873842898,-500.0,0.00016982,2]
[352000344,1738873842908,-500.0,0.00016982,2]
[352000346,1738873842918,-500.0,0.00016982,2]
[352000347,1738873842927,-500.0,0.00016982,2]
[352000348,1738873842939,-500.0,0.00016982,2]
[352000349,1738873842949,-500.0,0.00016982,2]
[352000350,1738873842959,-500.0,0.00016982,2]
[352000351,1738873842968,-500.0,0.00016982,2]
[352000352,1738873842978,-500.0,0.00016982,2]
[352000353,1738873842987,-374.7813872,0.00016982,2]
[352000354,1738873842998,-500.0,0.00016982,2]
[352000355,1738873843008,-500.0,0.00016982,2]
[352000356,1738873843017,-500.0,0.00016982,2]
[352000357,1738873843027,-500.0,0.00016982,2]
[352000358,1738873843038,-500.0,0.00016982,2]
[352000359,1738873843048,-500.0,0.00016982,2]
[352000360,1738873843057,-500.0,0.00016982,2]
[352000361,1738873843067,-500.0,0.00016982,2]
[352000362,1738873843077,-500.0,0.00016982,2]
[352000363,1738873843087,-500.0,0.00016982,2]
[352000364,1738873843097,-500.0,0.00016982,2]
[352000365,1738873843106,-500.0,0.00016982,2]
[352000366,1738873843116,-500.0,0.00016982,2]
[352000367,1738873843125,-500.0,0.00016982,2]
[352000368,1738873843134,-500.0,0.00016982,2]
[352000369,1738873843144,-500.0,0.00016982,2]
[352000370,1738873843153,-500.0,0.00016982,2]
[352000371,1738873843163,-500.0,0.00016982,2]
[352000372,1738873843172,-500.0,0.00016982,2]
[352000373,1738873843181,-500.0,0.00016982,2]
[352000374,1738873843191,-500.0,0.00016982,2]
[352000375,1738873843200,-500.0,0.00016982,2]
[352000377,1738873843210,-500.0,0.00016982,2]
[352000378,1738873843219,-500.0,0.00016982,2]
[352000379,1738873843228,-500.0,0.00016982,2]
[352000380,1738873843238,-500.0,0.00016982,2]
[352000381,1738873843247,-500.0,0.00016982,2]
[352000382,1738873843258,-332.63559342,0.00016982,2]
[352000383,1738873843268,-500.0,0.00016982,2]
[352000384,1738873843278,-500.0,0.00016982,2]
[352000385,1738873843288,-23.16589957,0.00016982,2]
[352000386,1738873843301,-476.83410043,0.00016982,2]
[352000387,1738873843311,-500.0,0.00016982,2]
[352000389,1738873843320,-500.0,0.00016982,2]
[352000391,1738873843330,-500.0,0.00016982,2]
[352000393,1738873843339,-385.42463306,0.00016982,2]
[352000396,1738873843351,-114.57536694,0.00016982,2]
[352000400,1738873843360,-458.75269988,0.00016982,2]
[352000419,1738873843548,-74.46004685,0.00016982,2]
[352000420,1738873843557,-500.0,0.00016982,2]
[352000421,1738873843567,-500.0,0.00016982,2]
[352000422,1738873843577,-500.0,0.00016982,2]
[352000423,1738873843587,-500.0,0.00016982,2]
[352000424,1738873843597,-500.0,0.00016982,2]
[352000425,1738873843606,-500.0,0.00016982,2]
[352000426,1738873843616,-500.0,0.00016982,2]
[352000427,1738873843626,-500.0,0.00016982,2]
[352000428,1738873843635,-500.0,0.00016982,2]
[352000429,1738873843645,-500.0,0.00016982,2]
[352000430,1738873843654,-500.0,0.00016982,2]
[352000431,1738873843664,-500.0,0.00016982,2]
[352000432,1738873843673,-500.95302455,0.00016982,2]
[352000433,1738873843684,-500.0,0.00016982,2]
[352000434,1738873843694,-500.0,0.00016982,2]
[352000435,1738873843704,-500.0,0.00016982,2]
[352000436,1738873843713,-500.0,0.00016982,2]
[352000437,1738873843722,-500.0,0.00016982,2]
[352000438,1738873843731,-500.0,0.00016982,2]
[352000439,1738873843740,-500.0,0.00016982,2]
[352000440,1738873843750,-500.0,0.00016982,2]
[352000441,1738873843761,-500.0,0.00016982,2]
[352000442,1738873843771,-43.09677081,0.00016982,2]
[352000443,1738873843789,-456.90322919,0.00016982,2]
[352000444,1738873843800,-500.0,0.00016982,2]
[352000445,1738873843811,-500.0,0.00016982,2]
[352000446,1738873843821,-500.0,0.00016982,2]
[352000447,1738873843832,-501.24997163,0.00016982,2]
[352000448,1738873843843,-500.0,0.00016982,2]
[352000449,1738873843854,-207.14679918,0.00016982,2]
[352000450,1738873843866,-292.85320082,0.00016982,2]
[352000451,1738873843877,-1295.22,0.00016982,2]
[352000452,1738873843888,-122.86923518,0.00016982,2]
[352000453,1738873843903,-377.13076482,0.00016982,2]
[352000454,1738873843913,-500.0,0.00016982,2]
[352000455,1738873843923,-259.10760358,0.00016982,2]
[352000456,1738873843941,-240.89239642,0.00016982,2]
[352000458,1738873843957,-208.65093359,0.00016982,2]
[352000462,1738873844106,-292.97370064,0.00016982,2]
[352000463,1738873844116,-693.12,0.00016982,2]
[352000464,1738873844126,-500.0,0.00016982,2]
[352000465,1738873844135,-72.38265603,0.00016982,2]
[352000466,1738873844148,-525.71734397,0.00016982,2]
[352000467,1738873844158,-500.0,0.00016982,2]
[352000468,1738873844168,-500.0,0.00016982,2]
[352000469,1738873844177,-618.33,0.00016982,2]
[352000470,1738873844187,-500.0,0.00016982,2]
[352000471,1738873844202,-500.0,0.00016982,2]
[352000472,1738873844213,-500.0,0.00016982,2]
[352000473,1738873844223,-500.0,0.00016982,2]
[352000474,1738873844233,-500.0,0.00016982,2]
[352000475,1738873844243,-500.0,0.00016982,2]
[352000476,1738873844254,-500.0,0.00016982,2]
[352000477,1738873844265,-500.0,0.00016982,2]
[352000478,1738873844275,-500.0,0.00016982,2]
[352000479,1738873844285,-500.0,0.00016982,2]
[352000480,1738873844295,-500.0,0.00016982,2]
[352000481,1738873844306,-500.0,0.00016982,2]
[352000482,1738873844316,-500.0,0.00016982,2]
[352000483,1738873844326,-500.0,0.00016982,2]
[352000484,1738873844335,-501.4207582,0.00016982,2]
[352000485,1738873844346,-500.0,0.00016982,2]
[352000486,1738873844356,-500.0,0.00016982,2]
[352000487,1738873844365,-500.0,0.00016982,2]
[352000488,1738873844375,-500.0,0.00016982,2]
[352000489,1738873844384,-500.0,0.00016982,2]
[352000490,1738873844394,-500.0,0.00016982,2]
[352000491,1738873844403,-500.0,0.00016982,2]
[352000492,1738873844413,-500.0,0.00016982,2]
[352000493,1738873844423,-819.14,0.00016982,2]
[352000494,1738873844433,-500.0,0.00016982,2]
[352000495,1738873844446,-575.08,0.00016982,2]
[352000496,1738873844456,-500.0,0.00016982,2]
[352000497,1738873844466,-550.45,0.00016982,2]
[352000498,1738873844476,-636.43,0.00016982,2]
[352000499,1738873844486,-500.0,0.00016982,2]
[352000500,1738873844496,-593.37,0.00016982,2]
[352000501,1738873844506,-500.0,0.00016982,2]
[352000502,1738873844515,-500.0,0.00016982,2]
[352000503,1738873844526,-500.0,0.00016982,2]
[352000504,1738873844536,-1014.92,0.00016982,2]
[352000505,1738873844546,-827.67,0.00016982,2]
[352000506,1738873844555,-500.0,0.00016982,2]
[352000507,1738873844565,-500.0,0.00016982,2]
[352000508,1738873844575,-510.83,0.00016982,2]
[352000509,1738873844585,-500.0,0.00016982,2]
[352000510,1738873844594,-500.0,0.00016982,2]
[352000511,1738873844604,-500.0,0.00016982,2]
[352000512,1738873844615,-500.0,0.00016982,2]
[352000513,1738873844626,-500.0,0.00016982,2]
[352000514,1738873844635,-1868.94,0.00016982,2]
[352000515,1738873844645,-500.0,0.00016982,2]
[352000516,1738873844654,-500.0,0.00016982,2]
[352000517,1738873844664,-598.1,0.00016982,2]
[352000518,1738873844673,-295.41,0.00016982,2]
[352000519,1738873844683,-1007.55,0.00016982,2]
[352000520,1738873844693,-500.0,0.00016982,2]
[352000521,1738873844703,-500.0,0.00016982,2]